bitfinex/quotes_ETHUSD_20250314
["timestamp","ask_amount","ask_price","bid_price","bid_amount"]
[1741975404364,10.28826,1944.0,1943.6,5.89567]
[1741975404549,8.14439,1943.9,1943.6,5.14507]
[1741975404745,0.795,1943.8,1943.6,5.14507]
[1741975405340,0.795,1943.8,1943.5,5.14535]
[1741975405541,0.795,1943.8,1943.5,5.14517]
[1741975406055,3.0,1943.7,1943.4,5.97249]
[1741975406248,3.0,1943.7,1943.4,5.14549]
[1741975406452,13.28987,1943.7,1943.3,5.14586]
[1741975406971,3.0,1943.7,1943.4,5.14556]
[1741975407173,8.14495,1943.7,1943.3,5.14586]
[1741975407340,9.78245765,1943.7,1943.3,5.14586]
[1741975407541,9.78245765,1943.7,1943.3,10.29156]
[1741975407852,9.78245765,1943.7,1943.4,5.14561]
[1741975408347,0.8284,1943.4,1943.1,5.14627]
[1741975408543,0.8284,1943.4,1943.1,5.14624]
[1741975409673,0.8284,1943.4,1943.2,5.14613]
[1741975410042,3.11895649,1943.6,1943.4,5.14562]
[1741975410243,3.8284,1943.6,1943.4,5.14562]
[1741975411372,3.0,1943.6,1943.5,5.14535]
[1741975411951,3.0,1943.6,1943.3,10.29157]
[1741975412276,3.0,1943.6,1943.4,10.29097]
[1741975412442,3.0,1943.6,1943.5,5.14535]
[1741975413151,1.21849761,1943.8,1943.7,5.14482]
[1741975413152,0.8284,1943.8,1943.7,5.14482]
[1741975413347,6.0185,1943.9,1943.6,5.14499]
[1741975413573,3.0,1943.8,1943.6,5.14499]
[1741975413874,3.0,1943.8,1943.3,5.14579]
[1741975413875,3.0,1943.5,1943.3,5.14579]
[1741975414077,3.0,1943.5,1943.2,5.14615]
[1741975414282,3.0,1943.5,1943.1,5.14631]
[1741975414283,10.43599649,1943.5,1943.1,5.14631]
[1741975414452,11.6641767,1943.5,1943.2,5.14614]
[1741975415180,16.8096767,1943.5,1943.1,5.14631]
[1741975415365,5.1457,1943.4,1943.0,5.14665]
[1741975415566,10.2915,1943.4,1943.0,5.14665]
[1741975415766,6.65832,1943.4,1943.0,10.29315]
[1741975418250,3.0,1943.3,1943.1,5.14637]
[1741975418581,3.0,1943.3,1943.2,5.14615]
[1741975419076,3.0,1943.3,1943.2,5.95415]
[1741975419286,6.1,1943.5,1943.4,5.14562]
[1741975419455,9.1,1943.5,1943.4,5.14562]
[1741975419777,3.0,1943.4,1943.2,5.14597]
[1741975419948,3.0,1943.4,1943.0,0.808]
[1741975420148,3.0,1943.4,1943.3,5.14588]
[1741975421985,3.0,1943.4,1943.2,5.14614]
[1741975422189,3.0,1943.4,1943.2,5.14594]
[1741975422551,8.95462,1943.4,1943.0,10.29323]
[1741975422784,12.15517649,1943.4,1943.0,5.14654]
[1741975423186,17.30097649,1943.4,1943.0,5.14654]
[1741975423484,17.30103649,1943.4,1943.0,5.14654]
[1741975423652,4.719,1943.4,1943.1,5.14629]
[1741975423857,17.30109649,1943.4,1943.0,5.14654]
[1741975424057,1.73010965,1943.3,1943.0,5.14654]
[1741975424256,6.87602965,1943.3,1942.9,10.29373]
[1741975424462,3.0,1943.1,1942.9,5.14683]
[1741975424854,3.0,1943.1,1942.9,10.29362]
[1741975425055,3.0,1943.2,1942.9,5.14679]
[1741975425382,0.8027,1943.1,1942.6,5.92307]
[1741975425587,3.98760297,1943.2,1942.9,10.29365]
[1741975425885,3.98760297,1943.2,1942.9,10.29364]
[1741975426454,3.98760297,1943.2,1943.0,5.14658]
[1741975427288,3.98760297,1943.2,1942.6,5.92307]
[1741975427289,16.57068946,1943.2,1942.8,5.14717]
[1741975427498,1.64046859,1943.1,1942.8,10.29422]
[1741975427658,1.64046859,1943.1,1942.6,0.7754]
[1741975427659,3.98760297,1943.2,1942.9,5.14676]
[1741975427859,3.7988,1943.3,1943.1,5.14641]
[1741975428067,3.0,1943.3,1943.1,5.14629]
[1741975428487,3.0,1943.3,1943.0,5.96035]
[1741975428674,3.0,1943.3,1943.0,10.29318]
[1741975428863,3.0,1943.3,1943.1,5.14637]
[1741975429067,3.0,1943.3,1943.2,5.14615]
[1741975429470,0.38445962,1943.4,1943.2,10.2923]
[1741975429776,3.0,1943.4,1943.3,5.14563]
[1741975430383,3.0,1943.5,1943.4,5.14546]
[1741975430585,3.0,1943.7,1943.4,5.14546]
[1741975430893,2.09497348,1943.8,1943.6,5.14492]
[1741975431067,6.08845649,1943.8,1943.5,5.1453]
[1741975431473,3.08845649,1943.8,1943.5,5.1453]
[1741975431793,3.0,1943.7,1943.5,5.1453]
[1741975432691,6.08845649,1943.8,1943.5,5.1453]
[1741975433259,6.08845649,1943.8,1943.5,10.2905]
[1741975433594,6.08845649,1943.8,1943.5,5.1452]
[1741975433801,6.08845649,1943.8,1943.5,10.29046]
[1741975434366,5.6073353,1943.8,1943.5,5.1452]
[1741975434794,10.7518953,1943.8,1943.5,5.1452]
[1741975435097,18.04326966,1943.8,1943.4,5.14559]
[1741975435269,12.89849966,1943.8,1943.4,10.29103]
[1741975435463,10.7518953,1943.8,1943.4,10.29103]
[1741975435777,15.8966253,1943.8,1943.4,5.14544]
[1741975435977,10.7518953,1943.8,1943.4,10.29096]
[1741975436367,10.7518953,1943.8,1943.5,5.14534]
[1741975437801,5.6073353,1943.8,1943.5,5.14523]
[1741975437989,5.6073353,1943.8,1943.5,10.29042]
[1741975438177,5.6073353,1943.8,1943.5,5.14521]
[1741975438367,5.6073353,1943.8,1943.6,5.14501]
[1741975438564,5.6073353,1943.8,1943.5,5.14521]
[1741975440570,5.6073353,1943.8,1943.5,5.14518]
[1741975440769,5.6073353,1943.8,1943.7,5.14482]
[1741975440770,3.0,1943.8,1943.7,5.14482]
[1741975441074,11.89277,1944.5,1943.8,0.7889]
[1741975441279,2.29055649,1944.3,1944.0,5.14383]
[1741975441504,7.43389649,1944.3,1943.9,5.14427]
[1741975441808,10.45455649,1944.3,1944.0,5.14393]
[1741975441994,5.14306,1944.4,1944.1,5.14359]
[1741975441995,3.0,1944.4,1944.1,5.14359]
[1741975442174,3.0,1944.4,1944.0,5.14395]
[1741975442175,8.14308,1944.4,1944.0,5.14395]
[1741975442367,5.14308,1944.4,1944.0,5.14395]
[1741975442722,8.14308,1944.4,1944.0,5.14395]
[1741975443284,8.14308,1944.4,1944.1,5.14375]
[1741975444098,3.0,1944.4,1944.2,5.14349]
[1741975444422,3.0,1944.4,1944.1,5.14375]
[1741975445607,2.29055649,1944.3,1944.0,5.14395]
[1741975445917,2.29055649,1944.3,1944.0,10.28782]
[1741975446244,2.29055649,1944.3,1944.1,5.14374]
[1741975446620,3.0,1944.4,1944.3,5.14323]
[1741975446803,8.39055649,1944.5,1944.3,5.14323]
[1741975446996,8.39055649,1944.5,1944.4,5.14297]
[1741975447311,11.39055649,1944.5,1944.4,5.14297]
[1741975447509,3.0,1944.4,1944.3,5.14315]
[1741975447715,2.29055649,1944.5,1944.4,5.14297]
[1741975448219,3.0,1944.6,1944.4,5.14284]
[1741975448401,3.0,1944.6,1944.5,5.97601]
[1741975448808,0.37940843,1944.8,1944.7,5.14218]
[1741975448988,7.44455649,1945.0,1944.8,5.14191]
[1741975449189,6.1,1945.3,1944.9,0.7921]
[1741975449495,7.43120649,1945.3,1945.0,5.14125]
[1741975449710,2.29055649,1945.1,1944.9,5.93369]
[1741975449912,2.29055649,1945.1,1945.0,5.14138]
[1741975450326,2.29055649,1945.2,1945.0,5.14138]
[1741975452626,2.29055649,1945.2,1944.9,5.93366]
[1741975452997,7.43157649,1945.2,1944.8,5.1418]
[1741975453330,2.29055649,1945.0,1944.7,10.28412]
[1741975453531,5.29055649,1945.0,1944.7,6.248772]
[1741975453748,3.65,1945.0,1944.7,5.1421]
[1741975454424,3.0,1945.0,1944.9,5.14165]
[1741975455127,3.0,1945.0,1944.7,5.14206]
[1741975455332,3.0,1945.0,1944.8,5.14186]
[1741975455530,2.29055649,1944.9,1944.6,5.92593]
[1741975455731,10.43231649,1944.9,1944.5,5.14255]
[1741975456301,5.29055649,1944.7,1944.4,5.96656]
[1741975456631,11.08294649,1944.7,1944.3,5.14318]
[1741975456813,2.29055649,1944.5,1944.2,5.91498]
[1741975457008,5.29055649,1944.5,1944.2,5.14348]
[1741975457210,5.29055649,1944.5,1944.1,5.14363]
[1741975457417,2.29055649,1944.5,1944.2,5.14339]
[1741975459836,5.14301,1944.4,1944.1,5.14376]
[1741975460139,2.29055649,1944.3,1944.1,5.14367]
[1741975460308,2.29055649,1944.3,1944.1,10.28724]
[1741975460509,2.29055649,1944.5,1944.2,5.14348]
[1741975460716,2.29055649,1944.5,1943.8,5.14454]
[1741975460717,7.43381649,1944.3,1943.9,5.14411]
[1741975460927,5.14406,1944.0,1943.7,5.1448]
[1741975461128,2.29055649,1943.9,1943.6,5.9075]
[1741975461309,2.29055649,1943.9,1943.6,5.90743]
[1741975461715,2.29055649,1943.9,1943.6,0.7625]
[1741975461920,2.94055649,1943.9,1943.6,5.14504]
[1741975462321,8.08488649,1943.9,1943.6,5.14504]
[1741975462532,2.94055649,1943.9,1943.6,5.14504]
[1741975462836,3.65,1943.9,1943.6,5.14492]
[1741975463209,3.65,1943.9,1943.7,5.14477]
[1741975463410,3.0,1943.9,1943.7,5.14465]
[1741975463826,3.0,1943.9,1943.6,5.14502]
[1741975464137,0.65,1944.1,1943.9,5.1442]
[1741975464320,3.0,1944.1,1943.9,5.1442]
[1741975465043,3.0,1944.1,1943.9,5.14412]
[1741975468029,12.55700649,1944.6,1944.3,5.14321]
[1741975468769,12.55700649,1944.6,1944.2,5.14342]
[1741975468947,12.55700649,1944.6,1944.3,5.14322]
[1741975469246,12.55700649,1944.6,1944.1,10.28742]
[1741975469247,2.29055649,1944.4,1944.1,10.28742]
[1741975469442,2.29055649,1944.2,1944.0,5.14399]
[1741975469611,7.43408649,1944.2,1943.8,5.14454]
[1741975469815,2.29055649,1944.0,1943.8,5.14454]
[1741975470014,2.29055649,1944.0,1943.7,5.1448]
[1741975470015,8.08467649,1944.0,1943.6,5.90508]
[1741975470238,8.08467649,1944.0,1943.6,5.14508]
[1741975470616,9.70752314,1944.0,1943.6,5.14508]
[1741975471217,14.85177314,1944.0,1943.6,5.14508]
[1741975471418,9.70752314,1944.0,1943.6,10.29004]
[1741975472040,0.65,1944.0,1943.9,5.14429]
[1741975472226,3.0,1944.1,1944.0,5.14403]
[1741975473444,3.0,1944.1,1943.9,5.14429]
[1741975473445,2.29055649,1944.2,1943.9,5.14416]
[1741975474348,2.94055649,1944.0,1943.6,5.14499]
[1741975474555,2.29055649,1943.8,1943.6,5.14499]
[1741975474849,5.29055649,1943.8,1943.6,5.14499]
[1741975475061,3.0,1943.8,1943.6,5.14499]
[1741975475928,3.0,1943.8,1943.7,5.14482]
[1741975476134,7.35588665,1944.2,1943.6,0.7783]
[1741975476135,9.04055649,1944.2,1943.6,0.7783]
[1741975476323,3.0,1944.1,1943.7,5.14482]
[1741975476517,3.0,1944.1,1943.9,5.14405]
[1741975477223,3.0,1944.1,1943.9,10.2882]
[1741975478419,3.0,1944.1,1944.0,5.14403]
[1741975478614,0.65,1944.4,1944.0,1.028808]
[1741975478848,2.94055649,1944.4,1944.1,5.14357]
[1741975479053,3.0,1944.3,1944.1,5.14357]
[1741975479550,3.0,1944.3,1944.1,5.14371]
[1741975479739,2.29055649,1944.2,1944.0,5.14401]
[1741975481056,2.29055649,1944.2,1944.0,10.28788]
[1741975481231,2.29055649,1944.2,1944.1,5.14376]
[1741975481432,2.29055649,1944.2,1944.0,5.14387]
[1741975483271,2.94055649,1944.0,1943.8,5.14456]
[1741975483639,2.94055649,1944.0,1943.8,5.14442]
[1741975484244,2.29055649,1944.0,1943.8,5.14438]
[1741975484751,2.94055649,1944.4,1943.9,0.8258]
[1741975484955,3.0,1944.3,1944.1,5.14364]
[1741975485129,2.29055649,1944.2,1943.9,5.1442]
[1741975485952,3.0,1944.1,1943.9,5.1442]
[1741975486468,2.29055649,1944.2,1944.0,5.14392]
[1741975486635,2.29055649,1944.2,1944.0,5.14402]
[1741975487066,2.29055649,1944.2,1943.9,5.14412]
[1741975487438,2.29055649,1944.2,1944.0,5.14402]
[1741975487860,2.29055649,1944.2,1943.9,5.14412]
[1741975488056,2.29055649,1944.2,1944.0,5.14394]
[1741975488267,3.0,1944.2,1944.1,5.14376]
[1741975493374,5.29055649,1944.2,1943.9,5.14428]
[1741975493687,5.29055649,1944.0,1943.7,5.14472]
[1741975493863,5.29055649,1944.0,1943.5,5.14532]
[1741975493864,2.29055649,1943.8,1943.5,5.14532]
[1741975494176,2.29055649,1943.6,1943.5,5.14532]
[1741975494378,2.29055649,1943.6,1943.3,10.29141]
[1741975494594,7.43566649,1943.6,1943.3,5.14563]
[1741975494874,7.43566649,1943.6,1943.1,5.14629]
[1741975494875,2.29055649,1943.4,1943.1,5.14629]
[1741975496159,2.29055649,1943.4,1943.2,5.14602]
[1741975501157,7.04921514,1943.2,1942.9,5.14679]
[1741975501355,12.13521514,1943.2,1942.9,5.14679]
[1741975501760,2.29055649,1943.0,1942.8,5.14715]
[1741975502477,3.0,1942.9,1942.6,11.07146]
[1741975502656,3.0,1942.9,1942.7,5.14741]
[1741975503781,3.0,1942.9,1942.6,5.14761]
[1741975504074,2.29055649,1943.0,1942.8,5.14701]
[1741975504274,3.0,1943.1,1942.8,10.29404]
[1741975504478,5.00740726,1943.1,1942.8,10.29404]
[1741975504777,5.00740726,1943.1,1942.8,5.14701]
[1741975506071,5.00740726,1943.1,1942.9,5.14688]
[1741975506270,3.0,1943.1,1943.0,5.14668]
[1741975507076,3.0,1943.1,1942.8,5.97429]
[1741975507260,3.0,1943.1,1942.8,0.8272]
[1741975507655,3.0,1943.1,1942.9,5.14673]
[1741975507845,3.0,1943.1,1942.9,10.29354]
[1741975508050,3.0,1943.1,1943.0,5.14668]
[1741975508983,25.40955649,1943.9,1943.2,5.14615]
[1741975509278,25.40955649,1943.9,1943.1,0.7699]
[1741975509279,7.43544649,1943.7,1943.3,5.14574]
[1741975509480,3.54856114,1943.7,1943.3,5.1457]
[1741975509674,2.29055649,1943.7,1943.4,5.14546]
[1741975509870,31.14455649,1943.9,1943.5,0.7503]
[1741975510048,30.49455649,1943.9,1943.7,5.14461]
[1741975510247,5.085,1943.9,1943.7,5.14461]
[1741975510475,2.94055649,1944.1,1943.8,10.28892]
[1741975510679,3.0,1944.0,1943.9,5.14425]
[1741975511251,2.29055649,1944.1,1943.8,5.14436]
[1741975511653,5.29055649,1944.1,1943.9,5.14428]
[1741975512585,5.29055649,1944.1,1943.8,5.14436]
[1741975513183,5.29055649,1944.1,1943.7,5.14481]
[1741975513368,2.29055649,1943.9,1943.6,5.1449]
[1741975513570,2.29055649,1943.7,1943.5,5.14509]
[1741975513775,2.29055649,1943.7,1943.4,5.14557]
[1741975514584,7.43606649,1943.5,1943.1,5.14621]
[1741975514788,10.43653649,1943.3,1942.9,5.14691]
[1741975514966,2.29055649,1943.1,1942.8,5.14706]
[1741975515166,3.0,1943.2,1942.9,5.14685]
[1741975515763,3.0,1943.2,1942.9,5.14675]
[1741975516294,3.0,1943.2,1943.0,5.1466]
[1741975516470,3.0,1943.2,1942.9,5.14675]
[1741975516667,2.29055649,1943.1,1942.8,5.1471]
[1741975516989,2.29055649,1943.1,1942.9,5.14693]
[1741975517166,5.29055649,1943.3,1943.1,5.14628]
[1741975517578,5.29055649,1943.3,1943.1,5.14627]
[1741975518084,5.29055649,1943.3,1943.0,5.14662]
[1741975518402,3.0,1943.3,1943.1,5.14639]
[1741975518606,3.0,1943.3,1943.1,5.14634]
[1741975518767,3.0,1943.3,1943.0,5.14664]
[1741975519377,8.14633,1943.2,1942.8,5.14713]
[1741975519702,8.14632,1943.2,1942.8,10.29419]
[1741975519887,8.14632,1943.2,1942.8,10.29412]
[1741975520090,3.0,1943.2,1943.0,5.14648]
[1741975521331,3.0,1943.2,1942.9,5.14686]
[1741975521508,9.20940928,1943.2,1942.8,10.29426]
[1741975521805,9.20940928,1943.2,1942.8,5.14709]
[1741975522189,9.20940928,1943.2,1942.8,10.29414]
[1741975522367,3.0,1943.0,1942.7,5.14728]
[1741975522569,3.0,1943.0,1942.7,10.29459]
[1741975522787,3.0,1943.0,1942.8,5.14718]
[1741975522992,3.87965,1943.0,1942.8,5.14718]
[1741975524007,3.87965,1943.0,1942.7,10.24465]
[1741975524307,3.87965,1943.0,1942.7,5.09728]
[1741975524684,3.87965,1943.0,1942.8,5.1472]
[1741975525496,0.87965,1943.0,1942.8,10.29432]
[1741975525804,4.06316928,1943.2,1942.9,5.14685]
[1741975526013,9.14216928,1943.2,1943.1,5.14641]
[1741975526312,8.079,1943.2,1943.1,5.14641]
[1741975526903,8.079,1943.2,1943.0,5.14666]
[1741975527275,8.079,1943.2,1943.0,5.14654]
[1741975527500,8.079,1943.2,1943.0,10.29305]
[1741975528104,8.079,1943.2,1943.1,5.14641]
[1741975528688,6.1,1943.4,1943.1,5.14641]
[1741975528889,16.32175,1943.4,1943.0,5.14651]
[1741975529090,18.588462,1943.4,1943.0,10.29304]
[1741975529307,3.0,1943.3,1943.1,5.14641]
[1741975529805,3.0,1943.3,1943.1,5.14632]
[1741975530307,3.0,1943.3,1943.1,10.29259]
[1741975530512,3.0,1943.3,1943.2,5.14615]
[1741975531006,3.65,1943.5,1943.3,5.14573]
[1741975531303,3.0,1943.5,1943.3,5.14582]
[1741975531505,8.14539,1943.5,1943.2,5.14611]
[1741975531685,3.0,1943.5,1943.2,5.14606]
[1741975532092,3.0,1943.5,1943.3,5.14578]
[1741975532278,4.97114181,1943.5,1943.2,5.14613]
[1741975532480,4.97114181,1943.5,1943.1,5.14631]
[1741975532702,3.0,1943.3,1943.0,5.14667]
[1741975533017,8.14589,1943.3,1942.9,5.14693]
[1741975533200,10.22217,1943.2,1942.8,5.14711]
[1741975533384,15.36851,1943.2,1942.8,5.14711]
[1741975533707,0.65,1943.1,1942.8,10.29422]
[1741975533913,0.65,1943.1,1942.9,5.14686]
[1741975534811,5.076,1943.2,1942.9,5.14686]
[1741975535012,5.62704947,1943.2,1942.9,5.14686]
[1741975535211,5.62704947,1943.2,1942.7,5.92079]
[1741975535507,15.94816028,1943.3,1943.0,5.14647]
[1741975535726,15.94816028,1943.3,1943.0,10.29294]
[1741975536427,15.94816028,1943.3,1943.0,5.14647]
[1741975536635,15.94816028,1943.3,1943.0,5.14652]
[1741975537123,15.94816028,1943.3,1943.1,5.1464]
[1741975537411,1.59481603,1943.2,1943.0,5.14652]
[1741975537711,1.59481603,1943.2,1943.0,10.2931]
[1741975537917,1.59481603,1943.2,1943.0,5.14652]
[1741975539020,1.59481603,1943.2,1942.8,5.1472]
[1741975539221,3.0,1943.0,1942.8,5.1472]
[1741975539900,3.0,1943.0,1942.7,5.14746]
[1741975540222,3.814646,1943.0,1942.7,10.29477]
[1741975542110,0.65,1942.9,1942.7,5.14743]
[1741975542413,0.65,1942.9,1942.6,5.1476]
[1741975542790,0.814646,1943.0,1942.8,5.14721]
[1741975543119,3.3806914,1943.1,1942.8,5.14721]
[1741975543283,3.3806914,1943.1,1942.7,0.7516]
[1741975543488,3.3806914,1943.1,1942.9,5.14693]
[1741975543896,3.0,1943.1,1942.9,5.14684]
[1741975544513,3.0,1943.1,1942.8,5.14716]
[1741975544714,3.5244816,1943.1,1942.8,10.29427]
[1741975545413,3.5244816,1943.1,1942.9,5.14693]
[1741975546525,5.81971106,1943.1,1942.7,5.14744]
[1741975546689,2.29522946,1942.9,1942.7,5.14744]
[1741975547021,7.36322946,1942.9,1942.5,5.91016]
[1741975547211,7.36322946,1942.9,1942.3,5.91063]
[1741975547212,10.44280946,1942.7,1942.3,5.91063]
[1741975547410,10.44280946,1942.7,1941.8,7.23716195]
[1741975547411,7.44335946,1942.5,1942.1,5.91117]
[1741975547596,3.0,1942.3,1942.1,10.29794]
[1741975547791,8.718,1942.4,1942.1,5.14897]
[1741975548019,2.29522946,1942.3,1942.0,5.14918]
[1741975548216,8.718,1942.4,1942.2,5.14865]
[1741975548525,9.16932295,1942.4,1942.2,5.14865]
[1741975548693,9.16932295,1942.4,1942.2,5.14863]
[1741975549499,8.068,1942.4,1942.2,5.14863]
[1741975549906,8.068,1942.4,1942.3,5.14853]
[1741975550102,3.0,1942.6,1942.4,5.14819]
[1741975550325,3.0,1942.6,1942.5,5.148]
[1741975550535,3.0,1942.8,1942.6,5.14762]
[1741975551414,5.44899473,1942.9,1942.6,5.14762]
[1741975551415,25.04322946,1943.2,1942.9,5.1468]
[1741975551805,3.0,1943.1,1942.9,5.1468]
[1741975552211,25.44001818,1943.2,1942.9,5.1468]
[1741975552414,2.29522946,1943.0,1942.8,5.1472]
[1741975552627,2.29522946,1943.0,1942.8,5.1471]
[1741975553224,2.29522946,1943.0,1942.8,10.29412]
[1741975553398,3.0,1943.1,1942.8,5.14702]
[1741975553811,3.0,1943.1,1942.7,5.14744]
[1741975554125,3.0,1943.1,1942.8,5.14703]
[1741975555127,3.0,1943.1,1942.9,5.14676]
[1741975555535,3.0,1943.1,1943.0,5.14668]
[1741975555729,3.0,1943.1,1942.9,5.14676]
[1741975556307,2.29522946,1943.0,1942.8,5.14709]
[1741975556723,3.0,1943.1,1942.6,0.80997088]
[1741975557031,0.39678872,1943.2,1943.1,5.14641]
[1741975557205,11.169,1943.3,1943.1,5.14641]
[1741975557407,3.0,1943.2,1943.1,5.14641]
[1741975557601,5.29522946,1943.2,1943.0,5.14668]
[1741975557802,5.79659,1943.1,1942.6,0.8247]
[1741975558006,5.79659,1943.1,1942.7,5.14745]
[1741975558007,2.29522946,1942.9,1942.7,5.14745]
[1741975560032,9.1,1943.0,1942.9,5.14694]
[1741975560230,6.1,1943.0,1942.9,5.14694]
[1741975560412,6.1,1943.0,1942.9,6.256945]
[1741975561298,5.29522946,1943.4,1942.9,6.256945]
[1741975561503,6.1,1943.5,1943.2,5.93232]
[1741975561702,3.0,1943.4,1943.3,5.14579]
[1741975562328,6.1,1943.5,1943.2,5.93233]
[1741975562533,2.29522946,1943.4,1943.3,5.14578]
[1741975562737,5.29522946,1943.4,1943.3,5.14578]
[1741975562936,3.0,1943.4,1943.3,5.14578]
[1741975563351,0.38395349,1943.8,1943.6,5.14499]
[1741975563550,5.069,1943.9,1943.7,5.14482]
[1741975563707,5.069,1943.9,1943.7,5.14463]
[1741975563908,3.0,1943.8,1943.7,5.14463]
[1741975564259,6.1,1944.0,1943.9,5.14429]
[1741975564537,0.65,1943.9,1943.1,0.7767]
[1741975564717,2.29522946,1943.7,1943.5,5.93381]
[1741975565039,2.29522946,1943.7,1943.5,11.07906]
[1741975565234,2.29522946,1943.7,1943.6,5.14509]
[1741975565434,6.26604589,1943.9,1943.7,5.14482]
[1741975565435,8.56127535,1943.9,1943.7,5.14482]
[1741975565627,8.56127535,1943.9,1943.5,5.93389]
[1741975565628,3.0,1943.8,1943.6,5.14492]
[1741975566218,2.29522946,1943.7,1943.6,5.14492]
[1741975566414,3.0,1943.6,1943.2,5.14589]
[1741975566615,5.29522946,1943.4,1943.1,5.62442711]
[1741975566951,8.14588,1943.3,1943.1,0.47809711]
[1741975567153,2.29522946,1943.2,1943.1,0.47809711]
[1741975567358,11.09137946,1943.2,1943.1,0.47809711]
[1741975567733,5.94522946,1943.2,1943.1,0.47809711]
[1741975568258,5.29522946,1943.2,1942.9,5.14676]
[1741975568417,6.63934041,1943.2,1942.9,5.14676]
[1741975569261,11.78551041,1943.2,1942.9,5.14676]
[1741975569660,12.73934041,1943.2,1942.9,5.14685]
[1741975570165,11.39522946,1943.2,1942.7,0.804]
[1741975570740,11.39522946,1943.2,1942.9,5.14676]
[1741975571357,9.1,1943.2,1943.1,5.14641]
[1741975571565,9.1,1943.2,1943.0,5.14663]
[1741975571923,9.1,1943.2,1942.9,5.14693]
[1741975572119,9.1,1943.2,1942.8,5.1472]
[1741975572328,9.1,1943.2,1942.6,5.1477]
[1741975572329,3.0,1942.9,1942.6,5.1477]
[1741975572521,7.44254946,1942.8,1942.4,5.92374]
[1741975572831,2.29522946,1942.8,1942.5,5.14789]
[1741975573176,2.29522946,1942.8,1942.6,5.14772]
[1741975573666,2.29522946,1942.8,1942.6,10.2953]
[1741975573834,2.29522946,1942.8,1942.5,5.14798]
[1741975574034,2.29522946,1942.8,1942.6,5.14764]
[1741975574246,9.1,1942.9,1942.7,5.14728]
[1741975575027,9.1,1942.9,1942.6,5.14773]
[1741975575233,15.45158295,1942.9,1942.5,10.29587]
[1741975575565,10.68211024,1942.9,1942.7,5.14745]
[1741975575857,9.47758729,1942.9,1942.7,5.14745]
[1741975576435,9.47758729,1942.9,1942.6,5.14772]
[1741975576631,9.47758729,1942.9,1942.6,5.14761]
[1741975576956,9.47758729,1942.9,1942.6,5.1476]
[1741975577165,9.47758729,1942.9,1942.6,10.2952]
[1741975577655,14.62453729,1942.9,1942.6,5.1476]
[1741975577862,9.47758729,1942.9,1942.6,10.29524]
[1741975578230,9.47758729,1942.9,1942.7,5.14744]
[1741975578855,9.47758729,1942.9,1942.8,5.14721]
[1741975579061,9.47758729,1942.9,1942.7,5.14744]
[1741975581067,9.47758729,1942.9,1942.6,10.29529]
[1741975581347,9.47758729,1942.9,1942.4,5.92369]
[1741975581348,14.62454729,1942.9,1942.4,5.92369]
[1741975581681,0.65,1942.8,1942.5,10.29577]
[1741975583465,0.65,1942.8,1942.6,5.1477]
[1741975583757,3.0,1942.6,1942.3,10.29691]
[1741975583960,5.29522946,1942.4,1942.2,5.14878]
[1741975584136,5.94522946,1942.4,1942.0,5.14922]
[1741975584344,5.29522946,1942.6,1942.3,5.14853]
[1741975584561,5.069,1942.5,1942.4,5.14826]
[1741975585143,3.0,1942.4,1942.3,5.14853]
[1741975585867,10.36422946,1942.6,1942.5,5.148]
[1741975586743,10.36422946,1942.8,1942.6,5.14767]
[1741975586938,10.36422946,1942.8,1942.6,5.14756]
[1741975586939,8.069,1942.8,1942.6,5.14756]
[1741975587144,3.0,1942.8,1942.7,5.14747]
[1741975587344,5.44658729,1942.9,1942.7,5.14747]
[1741975587537,3.0,1942.8,1942.7,5.14747]
[1741975589071,6.48858779,1943.0,1942.7,1.029503]
[1741975589365,13.54135946,1943.3,1942.8,5.14718]
[1741975589663,3.0,1943.2,1943.0,5.14657]
[1741975589863,6.1,1943.3,1943.2,5.14615]
[1741975590031,3.0,1943.3,1943.2,10.29212]
[1741975590235,3.0,1943.4,1943.3,5.14574]
[1741975590438,5.069,1943.5,1943.1,5.14625]
[1741975590641,2.94522946,1943.2,1942.7,0.7624]
[1741975590957,10.2205,1943.1,1942.5,0.7624]
[1741975591164,5.14704,1942.9,1942.4,5.14802]
[1741975591336,5.14748,1942.7,1942.3,6.3892443]
[1741975591534,11.182,1942.7,1942.4,5.1481]
[1741975591833,5.14802,1942.5,1942.3,0.4784743]
[1741975592033,2.29522946,1942.4,1942.3,0.4784743]
[1741975592266,8.09349946,1942.4,1942.0,5.14917]
[1741975592478,8.09349946,1942.4,1941.7,5.6285743]
[1741975592479,7.44411946,1942.2,1941.8,5.1497]
[1741975592698,7.44411946,1942.2,1941.7,6.3818843]
[1741975592699,2.29522946,1942.0,1941.7,5.6285943]
[1741975592856,8.14986,1941.8,1941.7,0.4784743]
[1741975593182,12.44117546,1941.8,1941.7,0.4784743]
[1741975593359,0.55,1941.7,1941.5,0.3833352]
[1741975593562,8.39522946,1941.6,1941.5,0.3833352]
[1741975594175,8.94522946,1941.6,1941.5,0.3833352]
[1741975594382,17.29128138,1941.6,1941.5,0.3833352]
[1741975594656,8.70154,1941.2,1940.7,0.47914884]
[1741975594867,8.70154,1941.2,1940.8,5.1525]
[1741975594868,6.1,1941.1,1940.8,5.1525]
[1741975595185,3.55,1940.8,1940.7,0.47914884]
[1741975595492,17.26362638,1940.8,1940.7,0.47914884]
[1741975595688,4.2,1940.7,1939.7,5.98134514]
[1741975595861,2.49089138,1940.3,1939.7,0.7744]
[1741975596056,3.0,1940.2,1939.7,5.92982]
[1741975596362,3.0,1940.2,1939.9,5.15486]
[1741975596673,3.0,1940.0,1939.7,5.15519]